[Event "WJCC U20 Open 2019"]
[Site "New Delhi"]
[Date "2019.10.23"]
[Round "9.43"]
[White "Maltezeanu, Stefan"]
[Black "Sivathanujan, S."]
[Result "1-0"]
[ECO "D43"]
[WhiteElo "2102"]
[BlackElo "1766"]
[Annotator "ChessBase"]
[PlyCount "100"]
[EventDate "2019.10.15"]
[EventType "swiss"]
[EventCountry "IND"]
[SourceTitle "playchess.com"]
[Source "ChessBase"]
[SourceQuality "1"]
[TimeControl "40/5400+30:1800+30"]

1. d4 {[%emt 0:00:00]} d5 {[%emt 0:00:00]} 2. c4 {[%emt 0:00:10]} c6 {[%emt 0:00:00]} 3. Nf3 {[%emt 0:00:20]} Nf6 {[%emt 0:00:00]} 4. Nc3 {[%emt 0:00:58]} e6 {[%emt 0:00:04]} 5. Bg5 {[%emt 0:00:40]} Be7 {[%emt 0:00:52]} 6. e3 {[%emt 0:00:09]} Nbd7 {[%emt 0:03:14]} 7. Bd3 {[%emt 0:01:05]} dxc4 {[%emt 0:03:18]} 8. Bxc4 {[%emt 0:01:22]} b5 {[%emt 0:00:11]} 9. Bd3 {[%emt 0:00:58]} Bb7 {[%emt 0:00:19]} 10. O-O {[%emt 0:00:09]} O-O {[%emt 0:00:11]} 11. e4 {[%emt 0:11:06]} h6 {[%emt 0:10:33]} 12. Bxf6 {[%emt 0:18:32]} Bxf6 {[%emt 0:06:51]} 13. e5 {[%emt 0:00:55]} Be7 {[%emt 0:00:13]} 14. Qe2 {[%emt 0:08:16]} c5 {[%emt 0:11:31]} 15. Nxb5 {[%emt 0:04:54]} a6 {[%emt 0:00:24]} 16. Nc3 {[%emt 0:00:22]} cxd4 {[%emt 0:03:56]} 17. Nxd4 {[%emt 0:07:17]} Nxe5 {[%emt 0:05:05]} 18. Qxe5 {[%emt 0:00:44]} Bf6 {[%emt 0:00:07]} 19. Qe2 {[%emt 0:05:33]} Qxd4 {[%emt 0:00:55]} 20. Rfd1 {[%emt 0:01:48]} Qb6 {[%emt 0:06:03]} 21. Rab1 {[%emt 0:02:11]} Rfd8 {[%emt 0:01:33]} 22. Ne4 {[%emt 0:00:28]} Bd4 {[%emt 0:01:20]} 23. Ng3 {[%emt 0:05:18]} Rd5 {[%emt 0:07:54]} 24. Be4 {[%emt 0:04:02]} Re5 {[%emt 0:03:12]} 25. Qf3 {[%emt 0:00:04]} Bxf2+ {[%emt 0:05:13]} 26. Kh1 {[%emt 0:00:05]} Bxe4 {[%emt 0:10:20]} 27. Nxe4 {[%emt 0:00:08]} Qa7 {[%emt 0:00:16]} 28. Nxf2 {[%emt 0:08:17]} Rf5 {[%emt 0:03:09]} 29. Rd7 {[%emt 0:00:20]} Qxd7 {[%emt 0:01:56]} 30. Qxa8+ {[%emt 0:00:10]} Kh7 {[%emt 0:00:06]} 31. Qe4 {[%emt 0:01:54]} g6 {[%emt 0:00:06]} 32. Qe2 {[%emt 0:01:52]} Qd4 {[%emt 0:03:24]} 33. Nh3 {[%emt 0:01:31]} a5 {[%emt 0:05:29]} 34. Rf1 {[%emt 0:01:04]} Rf4 35. Rf2 Rxf2 {[%emt 0:00:43]} 36. Qf1 {[%emt 0:00:34]} f5 37. Qxf2 {[%emt 0:00:29]} Qd7 {[%emt 0:01:17]} 38. Qe1 {[%emt 0:00:49]} a4 {[%emt 0:00:16]} 39. Qe5 {[%emt 0:00:18]} g5 {[%emt 0:02:02]} 40. Ng1 {[%emt 0:00:06]} g4 {[%emt 0:00:30]} 41. h3 {[%emt 0:30:03]} h5 {[%emt 0:30:08]} 42. Kh2 {[%emt 0:00:46]} Kg6 {[%emt 0:02:04]} 43. Ne2 {[%emt 0:00:14]} Kf7 {[%emt 0:01:40]} 44. Nf4 {[%emt 0:00:18]} gxh3 {[%emt 0:00:34]} 45. Kxh3 {[%emt 0:00:25]} h4 {[%emt 0:00:52]} 46. b4 {[%emt 0:01:06]} axb3 {[%emt 0:00:22]} 47. axb3 {[%emt 0:00:04]} Qc6 {[%emt 0:00:28]} 48. Qxe6+ {[%emt 0:00:11]} Qxe6 {[%emt 0:00:10]} 49. Nxe6 {[%emt 0:00:03]} Kxe6 {[%emt 0:00:07]} 50. Kxh4 {[%emt 0:00:02]} Kd5 1-0

[Event "WJCC U20 Open 2019"]
[Site "New Delhi"]
[Date "2019.10.23"]
[Round "9.45"]
[White "Dahanayake, Isara Banidu"]
[Black "Swarnavo Choudhury"]
[Result "1/2-1/2"]
[ECO "B47"]
[WhiteElo "1771"]
[BlackElo "1797"]
[Annotator "NA"]
[PlyCount "99"]
[EventDate "2019.10.15"]
[EventType "swiss"]
[EventCountry "IND"]
[SourceTitle "playchess.com"]
[Source "ChessBase"]
[SourceQuality "1"]
[TimeControl "40/5400+30:1800+30"]

1. e4 {[%emt 0:00:00]} c5 {[%emt 0:00:00]} 2. Nf3 {[%emt 0:00:00]} e6 {[%emt 0:00:00]} 3. d4 {[%emt 0:00:13]} cxd4 {[%emt 0:00:00]} 4. Nxd4 {[%emt 0:00:07]} Nc6 {[%emt 0:00:00]} 5. Nc3 {[%emt 0:00:44]} Qc7 {[%emt 0:00:06]} 6. f4 {[%emt 0:00:38]} a6 {[%emt 0:00:20]} 7. Nxc6 {[%emt 0:00:21]} bxc6 {[%emt 0:02:10]} 8. Bd3 {[%emt 0:00:19]} Nf6 {[%emt 0:00:16]} 9. O-O {[%emt 0:01:49]} d5 {[%emt 0:01:05]} 10. Qe2 {[%emt 0:00:45]} Be7 {[%emt 0:01:10]} 11. Bd2 {[%emt 0:01:17]} Rb8 {[%emt 0:05:12]} 12. b3 {[%emt 0:03:14]} Bb7 {[%emt 0:06:32]} 13. Rae1 {[%emt 0:06:04]} h5 {[%emt 0:17:45]} 14. e5 {[%emt 0:31:17]} Ng4 {[%emt 0:01:17]} 15. Kh1 {[%emt 0:06:57]} g6 {[%emt 0:01:19]} 16. Na4 {[%emt 0:03:06]} a5 {[%emt 0:02:37]} 17. c4 {[%emt 0:09:02]} c5 {[%emt 0:05:12]} 18. cxd5 {[%emt 0:06:22]} Bxd5 {[%emt 0:00:58]} 19. Rc1 {[%emt 0:01:32]} Qa7 {[%emt 0:13:33]} 20. Bb5+ {[%emt 0:06:29]} Kf8 {[%emt 0:02:40]} 21. Nc3 {[%emt 0:05:26]} Bb7 {[%emt 0:04:53]} 22. a4 {[%emt 0:04:15]} Kg7 {[%emt 0:01:41]} 23. Nd1 {[%emt 0:03:13]} Bd5 {[%emt 0:06:43]} 24. Rc3 {[%emt 0:01:07]} Qa8 {[%emt 0:06:28]} 25. Ne3 {[%emt 0:01:09]} Be4 {[%emt 0:01:07]} 26. Nc4 {[%emt 0:02:58]} Rhd8 {[%emt 0:02:17]} 27. Be1 {[%emt 0:01:12]} Rd4 {[%emt 0:05:16]} 28. h3 {[%emt 0:01:07]} Nh6 {[%emt 0:00:50]} 29. Nd2 {[%emt 0:02:34]} Nf5 {[%emt 0:01:49]} 30. Nf3 {[%emt 0:00:35]} Rdd8 {[%emt 0:02:51]} 31. Bf2 {[%emt 0:00:36]} h4 {[%emt 0:02:30]} 32. Rfc1 {[%emt 0:00:23]} Nd4 {[%emt 0:00:54]} 33. Bxd4 {[%emt 0:00:34]} cxd4 {[%emt 0:00:07]} 34. Rc7 {[%emt 0:00:26]} d3 {[%emt 0:02:35]} 35. Qf2 {[%emt 0:00:31]} Rbc8 {[%emt 0:01:48]} 36. Nd2 {[%emt 0:00:27]} Bf5 {[%emt 0:00:15]} 37. R1c4 {[%emt 0:01:06]} Rxc7 {[%emt 0:02:40]} 38. Rxc7 {[%emt 0:00:01]} Bb4 {[%emt 0:00:34]} 39. Qxh4 {[%emt 0:00:29]} Rf8 {[%emt 0:00:13]} 40. Qf2 {[%emt 0:00:44]} Rh8 {[%emt 0:01:07]} 41. Kg1 {[%emt 0:30:27]} Rc8 {[%emt 0:05:25]} 42. Rc4 {[%emt 0:00:00]} Rh8 {[%emt 0:09:17]} 43. Bc6 {[%emt 0:00:00]} Qb8 {[%emt 0:04:43]} 44. Bb5 {[%emt 0:00:00]} Qa8 {[%emt 0:05:46]} 45. Bc6 {[%emt 0:01:24]} Qb8 {[%emt 0:00:13]} 46. Bb5 {[%emt 0:00:03]} Bxd2 {[%emt 0:01:09]} 47. Qxd2 {[%emt 0:00:02]} Qb7 {[%emt 0:03:15]} 48. Qe3 {[%emt 0:01:02]} Qd5 {[%emt 0:03:40]} 49. Qd2 {[%emt 0:00:53]} Qa8 {[%emt 0:01:20]} 50. Kh2 1/2-1/2

[Event "WJCC U20 Open 2019"]
[Site "New Delhi"]
[Date "2019.10.24"]
[Round "10.8"]
[White "Kollars, Dmitrij"]
[Black "Haria, Ravi"]
[Result "1-0"]
[ECO "A13"]
[WhiteElo "2587"]
[BlackElo "2463"]
[Annotator "ChessBase"]
[PlyCount "117"]
[EventDate "2019.10.15"]
[EventType "swiss"]
[EventCountry "IND"]
[SourceTitle "playchess.com"]
[Source "ChessBase"]
[SourceQuality "1"]
[TimeControl "40/5400+30:1800+30"]

1. c4 {[%emt 0:00:00]} e6 {[%emt 0:01:15]} 2. g3 {[%emt 0:00:00]} d5 {[%emt 0:00:54]} 3. Nf3 {[%emt 0:00:24]} Nf6 {[%emt 0:00:18]} 4. Bg2 {[%emt 0:00:04]} Be7 {[%emt 0:04:55]} 5. b3 {[%emt 0:00:07]} O-O {[%emt 0:00:52]} 6. O-O {[%emt 0:00:09]} b6 {[%emt 0:02:53]} 7. Bb2 {[%emt 0:00:13]} Bb7 {[%emt 0:00:04]} 8. cxd5 {[%emt 0:00:29]} Nxd5 {[%emt 0:02:08]} 9. d4 {[%emt 0:07:19]} Nf6 {[%emt 0:06:05]} 10. Nbd2 {[%emt 0:02:59]} c5 {[%emt 0:03:31]} 11. Nc4 {[%emt 0:12:19]} Nbd7 {[%emt 0:08:03]} 12. Rc1 {[%emt 0:01:21]} b5 {[%emt 0:04:37]} 13. Nce5 {[%emt 0:04:38]} Nxe5 {[%emt 0:09:29]} 14. Nxe5 {[%emt 0:00:34]} Bxg2 {[%emt 0:00:07]} 15. Kxg2 Qd5+ {[%emt 0:03:06]} 16. f3 {[%emt 0:02:12]} Rac8 {[%emt 0:04:39]} 17. e4 {[%emt 0:03:05]} Qb7 {[%emt 0:00:54]} 18. dxc5 {[%emt 0:00:37]} Bxc5 {[%emt 0:00:54]} 19. Qe2 {[%emt 0:02:17]} a6 {[%emt 0:03:42]} 20. Rc2 {[%emt 0:05:57]} Nd7 {[%emt 0:09:10]} 21. Nd3 {[%emt 0:09:01]} Ba7 {[%emt 0:03:37]} 22. Rfc1 {[%emt 0:01:20]} h6 {[%emt 0:05:12]} 23. Qd2 {[%emt 0:04:31]} Rfd8 {[%emt 0:05:54]} 24. Qf4 {[%emt 0:01:32]} Rxc2+ {[%emt 0:05:42]} 25. Rxc2 {[%emt 0:00:02]} Rc8 {[%emt 0:06:59]} 26. Rd2 {[%emt 0:03:11]} Qb6 {[%emt 0:02:14]} 27. Nf2 {[%emt 0:01:12]} Qe3 {[%emt 0:02:36]} 28. Qxe3 {[%emt 0:17:26]} Bxe3 {[%emt 0:00:06]} 29. Re2 {[%emt 0:00:03]} Bc1 {[%emt 0:01:55]} 30. Bd4 {[%emt 0:00:59]} e5 {[%emt 0:00:54]} 31. Ba1 {[%emt 0:00:29]} f6 {[%emt 0:01:51]} 32. Nd3 {[%emt 0:00:14]} Kf7 {[%emt 0:00:35]} 33. f4 {[%emt 0:01:54]} Ke6 {[%emt 0:00:33]} 34. Nxc1 {[%emt 0:07:43]} Rxc1 {[%emt 0:00:01]} 35. Bb2 {[%emt 0:00:04]} Rc6 {[%emt 0:00:50]} 36. Rd2 {[%emt 0:01:11]} Ke7 {[%emt 0:00:49]} 37. Ba3+ {[%emt 0:01:21]} Ke8 {[%emt 0:00:24]} 38. Bb4 {[%emt 0:00:03]} Nf8 {[%emt 0:00:37]} 39. f5 {[%emt 0:04:15]} Nd7 {[%emt 0:00:16]} 40. Kf3 {[%emt 0:00:06]} Nb6 {[%emt 0:00:46]} 41. Kg4 {[%emt 0:31:47]} Nc8 {[%emt 0:23:56]} 42. Kh5 {[%emt 0:00:00]} Ne7 {[%emt 0:00:08]} 43. Bxe7 {[%emt 0:00:00]} Kxe7 {[%emt 0:00:04]} 44. Kg6 {[%emt 0:00:00]} Rc3 {[%emt 0:01:13]} 45. Kxg7 {[%emt 0:00:00]} h5 {[%emt 0:03:28]} 46. Kg6 {[%emt 0:00:00]} Re3 {[%emt 0:00:27]} 47. Kxh5 {[%emt 0:00:00]} Rxe4 {[%emt 0:00:04]} 48. h4 {[%emt 0:00:00]} Re3 {[%emt 0:02:45]} 49. g4 {[%emt 0:00:00]} Rh3 {[%emt 0:00:14]} 50. Rd5 {[%emt 0:00:00]} Rh2 {[%emt 0:02:29]} 51. a4 {[%emt 0:00:00]} bxa4 {[%emt 0:00:29]} 52. bxa4 {[%emt 0:00:00]} Rh3 {[%emt 0:00:41]} 53. Ra5 {[%emt 0:00:00]} e4 {[%emt 0:00:31]} 54. Rxa6 {[%emt 0:00:00]} e3 {[%emt 0:00:29]} 55. a5 {[%emt 0:00:00]} Kf7 {[%emt 0:00:31]} 56. Re6 {[%emt 0:00:00]} Rf3 {[%emt 0:00:31]} 57. a6 {[%emt 0:00:00]} Rf4 {[%emt 0:00:31]} 58. Rxe3 {[%emt 0:00:00]} Ra4 {[%emt 0:00:07]} 59. Re6 {[%emt 0:00:00]} 1-0

[Event "WJCC U20 Open 2019"]
[Site "New Delhi"]
[Date "2019.10.24"]
[Round "10.13"]
[White "Gazik, Viktor"]
[Black "Mendonca, Leon Luke"]
[Result "0-1"]
[ECO "B90"]
[WhiteElo "2546"]
[BlackElo "2388"]
[Annotator "ChessBase"]
[PlyCount "96"]
[EventDate "2019.10.15"]
[EventType "swiss"]
[EventCountry "IND"]
[SourceTitle "playchess.com"]
[Source "ChessBase"]
[SourceQuality "1"]
[TimeControl "40/5400+30:1800+30"]

1. e4 {[%emt 0:00:00]} c5 {[%emt 0:00:00]} 2. Nf3 {[%emt 0:00:00]} d6 {[%emt 0:00:00]} 3. d4 {[%emt 0:00:00]} cxd4 {[%emt 0:00:04]} 4. Nxd4 {[%emt 0:00:00]} Nf6 {[%emt 0:00:16]} 5. Nc3 {[%emt 0:00:00]} a6 {[%emt 0:00:52]} 6. h3 {[%emt 0:00:00]} e5 {[%emt 0:00:33]} 7. Nb3 {[%emt 0:00:00]} Be6 {[%emt 0:02:09]} 8. f4 {[%emt 0:00:00]} Be7 {[%emt 0:01:33]} 9. f5 {[%emt 0:09:13]} Bc8 {[%emt 0:00:13]} 10. g4 {[%emt 0:11:38]} h6 {[%emt 0:00:29]} 11. a4 {[%emt 0:05:42]} b6 {[%emt 0:01:34]} 12. Bg2 {[%emt 0:02:20]} Bb7 {[%emt 0:01:09]} 13. Qe2 {[%emt 0:09:25]} Nbd7 {[%emt 0:07:59]} 14. Bd2 {[%emt 0:04:28]} b5 {[%emt 0:25:31]} 15. axb5 {[%emt 0:02:29]} axb5 {[%emt 0:00:39]} 16. Rxa8 {[%emt 0:03:40]} Qxa8 {[%emt 0:02:44]} 17. O-O {[%emt 0:12:08]} b4 {[%emt 0:05:31]} 18. Nb5 {[%emt 0:00:17]} O-O {[%emt 0:04:05]} 19. Ra1 {[%emt 0:02:33]} Qb8 {[%emt 0:10:25]} 20. Bxb4 {[%emt 0:02:11]} Bxe4 {[%emt 0:02:31]} 21. Bxe4 {[%emt 0:01:37]} Nxe4 22. c4 {[%emt 0:02:44]} Ndf6 {[%emt 0:06:04]} 23. Kh2 {[%emt 0:02:17]} Re8 {[%emt 0:05:17]} 24. Ra7 {[%emt 0:02:41]} Bf8 {[%emt 0:04:39]} 25. Ba5 {[%emt 0:06:00]} d5 {[%emt 0:06:12]} 26. Bc7 {[%emt 0:02:25]} Qc8 {[%emt 0:00:03]} 27. cxd5 {[%emt 0:02:19]} Nc5 {[%emt 0:08:54]} 28. Qc4 {[%emt 0:01:17]} Nxb3 {[%emt 0:01:13]} 29. Qxb3 {[%emt 0:00:02]} Bc5 {[%emt 0:01:45]} 30. Ra1 {[%emt 0:01:21]} Qd7 {[%emt 0:01:26]} 31. d6 {[%emt 0:04:01]} e4 {[%emt 0:00:44]} 32. Re1 {[%emt 0:09:32]} e3 {[%emt 0:00:44]} 33. Qd3 {[%emt 0:02:35]} Qc6 {[%emt 0:00:31]} 34. Nc3 {[%emt 0:00:28]} Qf3 {[%emt 0:00:36]} 35. Re2 {[%emt 0:00:01]} Qf4+ {[%emt 0:00:31]} 36. Kg2 {[%emt 0:00:02]} Ra8 {[%emt 0:00:19]} 37. Nd5 {[%emt 0:02:22]} Nxd5 {[%emt 0:00:20]} 38. Qxd5 {[%emt 0:00:02]} Ra1 {[%emt 0:00:16]} 39. d7 {[%emt 0:00:43]} Qf1+ {[%emt 0:00:46]} 40. Kg3 {[%emt 0:00:02]} Qxe2 {[%emt 0:00:40]} 41. d8=Q+ {[%emt 0:06:45]} Kh7 {[%emt 0:00:02]} 42. Kh4 {[%emt 0:17:47]} Qf2+ {[%emt 0:02:29]} 43. Bg3 {[%emt 0:00:07]} e2 {[%emt 0:00:23]} 44. Qc7 {[%emt 0:04:32]} e1=Q {[%emt 0:13:54]} 45. Bxf2 {[%emt 0:00:04]} Bxf2+ {[%emt 0:00:09]} 46. Kh5 {[%emt 0:00:01]} Qe3 {[%emt 0:01:15]} 47. h4 {[%emt 0:02:41]} Qg3 {[%emt 0:00:45]} 48. Qdd8 {[%emt 0:01:07]} Rh1 {[%emt 0:00:35]} 0-1

[Event "WJCC U20 Open 2019"]
[Site "New Delhi"]
[Date "2019.10.24"]
[Round "10.14"]
[White "Visakh N R"]
[Black "Pogosyan, Stefan"]
[Result "1/2-1/2"]
[ECO "D35"]
[WhiteElo "2529"]
[BlackElo "2364"]
[Annotator "ChessBase"]
[PlyCount "144"]
[EventDate "2019.10.15"]
[EventType "swiss"]
[EventCountry "IND"]
[SourceTitle "playchess.com"]
[Source "ChessBase"]
[SourceQuality "1"]
[TimeControl "40/5400+30:1800+30"]

1. d4 {[%emt 0:00:00]} d5 {[%emt 0:00:00]} 2. c4 {[%emt 0:00:00]} e6 {[%emt 0:00:00]} 3. Nc3 {[%emt 0:00:00]} Nf6 {[%emt 0:00:28]} 4. cxd5 {[%emt 0:00:18]} exd5 {[%emt 0:00:54]} 5. Bg5 {[%emt 0:00:07]} Be7 {[%emt 0:02:52]} 6. e3 {[%emt 0:00:08]} O-O {[%emt 0:00:05]} 7. Bd3 {[%emt 0:00:11]} c6 {[%emt 0:00:04]} 8. Qc2 {[%emt 0:00:09]} h6 {[%emt 0:00:26]} 9. Bh4 {[%emt 0:06:34]} Re8 {[%emt 0:01:22]} 10. Nge2 {[%emt 0:04:01]} Nbd7 {[%emt 0:07:17]} 11. O-O {[%emt 0:05:03]} Ne4 {[%emt 0:03:40]} 12. Bxe7 {[%emt 0:15:15]} Qxe7 {[%emt 0:00:28]} 13. b4 {[%emt 0:00:29]} Ndf6 {[%emt 0:04:08]} 14. b5 {[%emt 0:04:50]} c5 {[%emt 0:02:00]} 15. Bxe4 {[%emt 0:15:06]} dxe4 {[%emt 0:01:16]} 16. Rfc1 {[%emt 0:00:11]} cxd4 {[%emt 0:06:53]} 17. Nxd4 {[%emt 0:00:25]} Bd7 {[%emt 0:00:04]} 18. Qb3 {[%emt 0:07:15]} Qe5 {[%emt 0:01:30]} 19. Nce2 {[%emt 0:01:24]} Rac8 {[%emt 0:05:27]} 20. h3 {[%emt 0:05:05]} Qd6 {[%emt 0:18:42]} 21. Rd1 {[%emt 0:02:33]} Rc5 {[%emt 0:03:33]} 22. Rac1 {[%emt 0:14:54]} Rec8 {[%emt 0:01:54]} 23. Rxc5 {[%emt 0:01:06]} Rxc5 {[%emt 0:02:34]} 24. a4 {[%emt 0:01:34]} Qc7 {[%emt 0:07:13]} 25. Qa3 {[%emt 0:00:54]} a6 {[%emt 0:03:32]} 26. Nf4 {[%emt 0:04:25]} Kh7 {[%emt 0:13:21]} 27. Qb2 {[%emt 0:04:46]} Rc4 {[%emt 0:02:10]} 28. Qa2 {[%emt 0:02:24]} Qc5 {[%emt 0:01:18]} 29. Nb3 {[%emt 0:01:25]} Qb4 {[%emt 0:00:51]} 30. Nd2 {[%emt 0:02:55]} Qxa4 {[%emt 0:01:13]} 31. Qxa4 {[%emt 0:00:02]} Rxa4 {[%emt 0:00:11]} 32. bxa6 {[%emt 0:00:01]} bxa6 {[%emt 0:01:14]} 33. Nb3 {[%emt 0:00:02]} Ra2 {[%emt 0:00:57]} 34. Rd6 {[%emt 0:00:41]} a5 {[%emt 0:01:30]} 35. Nh5 {[%emt 0:00:46]} Nxh5 {[%emt 0:02:48]} 36. Rxd7 {[%emt 0:00:01]} a4 {[%emt 0:00:51]} 37. Nc5 {[%emt 0:00:24]} a3 {[%emt 0:00:13]} 38. Nxe4 {[%emt 0:01:07]} Rc2 {[%emt 0:00:15]} 39. Ra7 {[%emt 0:00:07]} a2 {[%emt 0:00:04]} 40. Kh2 {[%emt 0:00:02]} f5 {[%emt 0:02:07]} 41. g4 {[%emt 0:32:36]} fxe4 {[%emt 0:07:16]} 42. gxh5 {[%emt 0:00:00]} Rxf2+ {[%emt 0:00:05]} 43. Kg3 {[%emt 0:00:00]} Rf3+ {[%emt 0:00:47]} 44. Kg4 {[%emt 0:00:00]} Rxe3 {[%emt 0:00:07]} 45. Rxa2 {[%emt 0:00:00]} Re1 {[%emt 0:00:19]} 46. Kf4 {[%emt 0:00:00]} e3 {[%emt 0:02:32]} 47. Ra3 {[%emt 0:00:00]} Rf1+ {[%emt 0:01:13]} 48. Kxe3 {[%emt 0:00:00]} Rf5 {[%emt 0:00:05]} 49. Ke4 {[%emt 0:00:00]} Rxh5 {[%emt 0:00:05]} 50. Kf4 {[%emt 0:00:00]} Rg5 {[%emt 0:00:27]} 51. Ra6 {[%emt 0:00:00]} Rg1 {[%emt 0:01:41]} 52. Kf3 {[%emt 0:00:00]} h5 {[%emt 0:00:36]} 53. Kf2 {[%emt 0:00:00]} Rg5 {[%emt 0:00:07]} 54. Rb6 {[%emt 0:00:00]} g6 {[%emt 0:00:06]} 55. Ra6 {[%emt 0:00:00]} Kh6 {[%emt 0:00:14]} 56. Ra4 {[%emt 0:00:00]} Rb5 {[%emt 0:00:49]} 57. h4 {[%emt 0:00:00]} Kg7 {[%emt 0:00:04]} 58. Ra6 {[%emt 0:00:00]} Kf7 {[%emt 0:00:17]} 59. Kg3 {[%emt 0:00:00]} Rb3+ {[%emt 0:00:07]} 60. Kg2 {[%emt 0:00:00]} Re3 {[%emt 0:01:24]} 61. Rb6 {[%emt 0:00:00]} Re6 {[%emt 0:00:05]} 62. Rb8 {[%emt 0:00:00]} Kf6 {[%emt 0:00:31]} 63. Rf8+ {[%emt 0:00:00]} Ke5 {[%emt 0:00:02]} 64. Kg3 {[%emt 0:00:00]} Rd6 {[%emt 0:01:17]} 65. Re8+ {[%emt 0:00:00]} Kf5 {[%emt 0:00:06]} 66. Rf8+ {[%emt 0:00:00]} Ke6 {[%emt 0:00:03]} 67. Re8+ {[%emt 0:00:00]} Kf7 {[%emt 0:00:05]} 68. Ra8 {[%emt 0:00:00]} Rd3+ {[%emt 0:00:09]} 69. Kg2 {[%emt 0:00:00]} Ke6 {[%emt 0:00:11]} 70. Rg8 {[%emt 0:00:00]} Kf5 {[%emt 0:00:33]} 71. Kh2 {[%emt 0:00:00]} Rd6 {[%emt 0:01:07]} 72. Kg3 {[%emt 0:00:00]} Rd3+ {[%emt 0:00:15]} 1/2-1/2

[Event "WJCC U20 Open 2019"]
[Site "New Delhi"]
[Date "2019.10.24"]
[Round "10.16"]
[White "Khanin, Semen"]
[Black "Parkhov, Yair"]
[Result "1/2-1/2"]
[ECO "B54"]
[WhiteElo "2507"]
[BlackElo "2350"]
[Annotator "ChessBase"]
[PlyCount "143"]
[EventDate "2019.10.15"]
[EventType "swiss"]
[EventCountry "IND"]
[SourceTitle "playchess.com"]
[Source "ChessBase"]
[SourceQuality "1"]
[TimeControl "40/5400+30:1800+30"]

1. e4 {[%emt 0:00:00]} c5 {[%emt 0:00:00]} 2. Nf3 {[%emt 0:00:00]} d6 {[%emt 0:00:00]} 3. d4 {[%emt 0:00:00]} cxd4 {[%emt 0:00:00]} 4. Nxd4 {[%emt 0:00:00]} Nf6 {[%emt 0:00:00]} 5. f3 {[%emt 0:00:00]} e5 {[%emt 0:01:25]} 6. Nb3 {[%emt 0:00:00]} d5 {[%emt 0:00:06]} 7. Bg5 {[%emt 0:00:03]} Be6 {[%emt 0:00:06]} 8. Bxf6 {[%emt 0:00:10]} gxf6 {[%emt 0:00:14]} 9. exd5 {[%emt 0:00:04]} Qxd5 {[%emt 0:00:25]} 10. Qxd5 {[%emt 0:00:05]} Bxd5 {[%emt 0:00:07]} 11. Nc3 {[%emt 0:00:05]} Be6 {[%emt 0:00:30]} 12. O-O-O {[%emt 0:00:07]} Nd7 {[%emt 0:05:28]} 13. Nb5 {[%emt 0:00:06]} Ke7 {[%emt 0:08:47]} 14. Nc7 {[%emt 0:07:23]} Rd8 {[%emt 0:01:53]} 15. Nd5+ {[%emt 0:05:27]} Bxd5 {[%emt 0:00:15]} 16. Rxd5 {[%emt 0:00:04]} Bh6+ {[%emt 0:03:36]} 17. Kb1 {[%emt 0:01:14]} Nc5 {[%emt 0:00:55]} 18. Bc4 {[%emt 0:00:39]} Rxd5 {[%emt 0:10:22]} 19. Bxd5 {[%emt 0:00:05]} Nxb3 {[%emt 0:00:09]} 20. axb3 {[%emt 0:00:11]} b6 {[%emt 0:00:18]} 21. Re1 {[%emt 0:20:25]} Bg5 {[%emt 0:22:11]} 22. g3 {[%emt 0:02:09]} h5 {[%emt 0:01:29]} 23. Re4 {[%emt 0:13:06]} h4 {[%emt 0:10:13]} 24. f4 {[%emt 0:00:49]} hxg3 {[%emt 0:02:06]} 25. hxg3 {[%emt 0:00:39]} Bh6 {[%emt 0:03:13]} 26. fxe5 {[%emt 0:00:43]} fxe5 {[%emt 0:02:12]} 27. Rxe5+ {[%emt 0:00:06]} Kd6 {[%emt 0:00:55]} 28. Rh5 {[%emt 0:08:57]} Ke7 {[%emt 0:03:11]} 29. b4 {[%emt 0:07:59]} Bg7 {[%emt 0:00:51]} 30. Rf5 {[%emt 0:00:14]} f6 {[%emt 0:00:50]} 31. b5 {[%emt 0:04:02]} Bh6 {[%emt 0:01:47]} 32. Rf3 {[%emt 0:03:15]} Bg5 {[%emt 0:02:26]} 33. Bc6 {[%emt 0:07:28]} Ke6 {[%emt 0:01:03]} 34. g4 {[%emt 0:01:40]} Rh7 {[%emt 0:03:44]} 35. Rd3 {[%emt 0:01:54]} Bf4 {[%emt 0:03:55]} 36. Be4 {[%emt 0:01:58]} Rc7 {[%emt 0:00:20]} 37. Bf5+ {[%emt 0:00:04]} Ke7 {[%emt 0:00:12]} 38. c3 {[%emt 0:02:01]} Ke8 {[%emt 0:04:14]} 39. Kc2 {[%emt 0:00:54]} Re7 {[%emt 0:04:37]} 40. Bg6+ {[%emt 0:03:36]} Kf8 {[%emt 0:00:06]} 41. Rd8+ {[%emt 0:30:06]} Kg7 {[%emt 0:30:06]} 42. Bd3 {[%emt 0:00:10]} Kh6 {[%emt 0:04:13]} 43. Rg8 {[%emt 0:00:00]} Rg7 {[%emt 0:00:00]} 44. Rh8+ {[%emt 0:00:00]} Kg5 {[%emt 0:00:00]} 45. Bf5 {[%emt 0:00:00]} Be5 {[%emt 0:00:00]} 46. Kd3 {[%emt 0:00:00]} Kf4 {[%emt 0:00:00]} 47. b3 {[%emt 0:00:00]} Re7 {[%emt 0:00:00]} 48. Rf8 {[%emt 0:00:00]} Kg5 {[%emt 0:00:00]} 49. Rd8 {[%emt 0:00:00]} Kf4 {[%emt 0:00:00]} 50. Rf8 {[%emt 0:00:00]} Kg5 {[%emt 0:00:00]} 51. b4 {[%emt 0:01:15]} Bg3 {[%emt 0:00:00]} 52. c4 {[%emt 0:01:29]} Bd6 {[%emt 0:00:00]} 53. c5 {[%emt 0:02:43]} bxc5 {[%emt 0:00:00]} 54. Rd8 {[%emt 0:00:03]} c4+ {[%emt 0:00:00]} 55. Kxc4 {[%emt 0:00:06]} Rc7+ {[%emt 0:00:00]} 56. Kb3 {[%emt 0:00:07]} Be5 {[%emt 0:00:00]} 57. Rd5 {[%emt 0:02:03]} Kf4 {[%emt 0:00:00]} 58. Ka4 {[%emt 0:00:54]} Rc4 {[%emt 0:01:04]} 59. Ka5 {[%emt 0:02:54]} Rd4 {[%emt 0:03:54]} 60. Rc5 {[%emt 0:00:05]} Bd6 {[%emt 0:00:22]} 61. Rc6 {[%emt 0:00:10]} Ke5 {[%emt 0:00:38]} 62. Bc8 {[%emt 0:02:36]} Bxb4+ {[%emt 0:01:39]} 63. Ka6 {[%emt 0:00:04]} Rd6 {[%emt 0:01:27]} 64. Rxd6 {[%emt 0:01:15]} Kxd6 {[%emt 0:00:06]} 65. Kxa7 {[%emt 0:00:03]} Bc5+ {[%emt 0:00:21]} 66. Kb7 {[%emt 0:00:18]} Be3 {[%emt 0:00:28]} 67. Bf5 {[%emt 0:00:05]} Bd4 {[%emt 0:00:15]} 68. Be4 {[%emt 0:00:16]} Be3 {[%emt 0:00:35]} 69. b6 {[%emt 0:00:04]} Bf2 {[%emt 0:00:31]} 70. Ka6 {[%emt 0:00:05]} Bd4 {[%emt 0:00:19]} 71. b7 {[%emt 0:00:19]} Kc7 {[%emt 0:00:05]} 72. Kb5 {[%emt 0:00:05]} 1/2-1/2